[Event "*** SCC Grand Prix: Titled Tuesday Blitz"]
[Site "Chess.com"]
[Date "2020.08.25"]
[Round "1"]
[White "KonstantinB_1983"]
[Black "x-0414717230"]
[Result "0-1"]
[WhiteElo "2387"]
[BlackElo "2735"]
[TimeControl "180+1"]
[EndTime "10:09:03 PDT"]
[Termination "x-0414717230 won on time"]

1. d4 {[%clk 0:03:00.9]} 1... Nf6 {[%clk 0:02:58.4]} 2. c4 {[%clk 0:03:00.1]}
2... g6 {[%clk 0:02:57.6]} 3. Nc3 {[%clk 0:02:59.2]} 3... Bg7 {[%clk 0:02:57.5]}
4. e4 {[%clk 0:02:58.9]} 4... d6 {[%clk 0:02:57.7]} 5. Nge2 {[%clk 0:02:59.2]}
5... O-O {[%clk 0:02:53.5]} 6. Ng3 {[%clk 0:02:59.4]} 6... c5 {[%clk 0:02:51.3]}
7. d5 {[%clk 0:02:58.7]} 7... e6 {[%clk 0:02:51.5]} 8. Be2 {[%clk 0:02:58.5]}
8... exd5 {[%clk 0:02:51.8]} 9. cxd5 {[%clk 0:02:58.6]} 9... Na6 {[%clk
0:02:39.1]} 10. O-O {[%clk 0:02:57.2]} 10... Nc7 {[%clk 0:02:39.2]} 11. a4
{[%clk 0:02:55.4]} 11... b6 {[%clk 0:02:37.7]} 12. Re1 {[%clk 0:02:53.5]} 12...
a6 {[%clk 0:02:34.6]} 13. Bf4 {[%clk 0:02:49]} 13... Re8 {[%clk 0:02:32.2]} 14.
Qd2 {[%clk 0:02:46.1]} 14... Rb8 {[%clk 0:02:31.8]} 15. Bh6 {[%clk 0:02:39.8]}
15... Bh8 {[%clk 0:02:21.3]} 16. f3 {[%clk 0:02:35.1]} 16... b5 {[%clk
0:02:19.9]} 17. Bf1 {[%clk 0:02:32.9]} 17... b4 {[%clk 0:02:16.4]} 18. Nb1
{[%clk 0:02:28.5]} 18... a5 {[%clk 0:02:10.5]} 19. Rc1 {[%clk 0:02:21.1]} 19...
Nd7 {[%clk 0:01:38.6]} 20. Bg5 {[%clk 0:02:15.8]} 20... Bf6 {[%clk 0:01:38.9]}
21. Bxf6 {[%clk 0:02:12.6]} 21... Qxf6 {[%clk 0:01:39.8]} 22. Qc2 {[%clk
0:02:10.1]} 22... h5 {[%clk 0:01:37]} 23. Ne2 {[%clk 0:01:56.9]} 23... h4 {[%clk
0:01:36.7]} 24. h3 {[%clk 0:01:56.3]} 24... Ne5 {[%clk 0:01:32.1]} 25. Nd2
{[%clk 0:01:55.4]} 25... Ba6 {[%clk 0:01:16.2]} 26. b3 {[%clk 0:01:35.9]} 26...
g5 {[%clk 0:01:10.4]} 27. Kh1 {[%clk 0:01:29.1]} 27... Re7 {[%clk 0:01:10.1]}
28. Ng1 {[%clk 0:01:27.7]} 28... Bxf1 {[%clk 0:01:06.4]} 29. Rxf1 {[%clk
0:01:26.6]} 29... Ne8 {[%clk 0:01:05.7]} 30. Ne2 {[%clk 0:01:23.4]} 30... Ng6
{[%clk 0:01:01.7]} 31. Rae1 {[%clk 0:01:17.7]} 31... Ng7 {[%clk 0:01:01.5]} 32.
Nc4 {[%clk 0:01:16.6]} 32... Nh5 {[%clk 0:01:00.9]} 33. Nxa5 {[%clk 0:01:06]}
33... Ree8 {[%clk 0:00:39.3]} 34. Nc6 {[%clk 0:01:01.8]} 34... Ra8 {[%clk
0:00:39.7]} 35. Kg1 {[%clk 0:00:57.5]} 35... Kh7 {[%clk 0:00:38.3]} 36. Qd2
{[%clk 0:00:54.6]} 36... Kh6 {[%clk 0:00:29.4]} 37. Ra1 {[%clk 0:00:52.8]} 37...
Ngf4 {[%clk 0:00:27.7]} 38. Rfd1 {[%clk 0:00:43.4]} 38... Nxe2+ {[%clk
0:00:26.7]} 39. Qxe2 {[%clk 0:00:42.7]} 39... Nf4 {[%clk 0:00:26.3]} 40. Qf2
{[%clk 0:00:39.5]} 40... Qc3 {[%clk 0:00:24.2]} 41. Rab1 {[%clk 0:00:34.7]}
41... f5 {[%clk 0:00:22.2]} 42. e5 {[%clk 0:00:28.3]} 42... Nd3 {[%clk
0:00:14.5]} 43. Qe3 {[%clk 0:00:21]} 43... Nxe5 {[%clk 0:00:13.9]} 44. Qxc3
{[%clk 0:00:19.7]} 44... bxc3 {[%clk 0:00:14.8]} 45. Rbc1 {[%clk 0:00:19.6]}
45... c4 {[%clk 0:00:10.2]} 46. Rxc3 {[%clk 0:00:19.5]} 46... cxb3 {[%clk
0:00:10.4]} 47. Rxb3 {[%clk 0:00:19.6]} 47... Rxa4 {[%clk 0:00:09.9]} 48. Rb4
{[%clk 0:00:19]} 48... Rxb4 {[%clk 0:00:09.8]} 49. Nxb4 {[%clk 0:00:18.3]} 49...
Rc8 {[%clk 0:00:10.5]} 50. Ra1 {[%clk 0:00:17.3]} 50... Rc4 {[%clk 0:00:10.5]}
51. Na6 {[%clk 0:00:16.2]} 51... Rd4 {[%clk 0:00:10.6]} 52. Nc7 {[%clk
0:00:16.1]} 52... Nc4 {[%clk 0:00:10]} 53. Ra6 {[%clk 0:00:14.8]} 53... Kg6
{[%clk 0:00:10.5]} 54. Ne6 {[%clk 0:00:13.6]} 54... Rd2 {[%clk 0:00:10.5]} 55.
Kf1 {[%clk 0:00:12.4]} 55... Rxd5 {[%clk 0:00:10.3]} 56. Rc6 {[%clk 0:00:10.1]}
56... Ne3+ {[%clk 0:00:09.5]} 57. Kf2 {[%clk 0:00:10.3]} 57... f4 {[%clk
0:00:09.3]} 58. Nd8 {[%clk 0:00:10.1]} 58... Kf5 {[%clk 0:00:09.4]} 59. Nb7
{[%clk 0:00:09.1]} 59... Rd2+ {[%clk 0:00:09.7]} 60. Ke1 {[%clk 0:00:08]} 60...
Rxg2 {[%clk 0:00:09.7]} 61. Rxd6 {[%clk 0:00:07.7]} 61... Ke5 {[%clk 0:00:10.3]}
62. Rg6 {[%clk 0:00:07.1]} 62... Rg3 {[%clk 0:00:11.1]} 63. Nc5 {[%clk
0:00:05.1]} 63... Kf5 {[%clk 0:00:11.3]} 64. Rg8 {[%clk 0:00:03.6]} 64... Rxf3
{[%clk 0:00:11.8]} 65. Ke2 {[%clk 0:00:03.5]} 65... Rxh3 {[%clk 0:00:11.9]} 66.
Rf8+ {[%clk 0:00:03.4]} 66... Kg4 {[%clk 0:00:11.3]} 67. Rg8 {[%clk 0:00:02.9]}
67... Rh2+ {[%clk 0:00:11.4]} 68. Kd3 {[%clk 0:00:03.1]} 68... Nf5 {[%clk
0:00:12.1]} 69. Ne4 {[%clk 0:00:03.1]} 69... Ng3 {[%clk 0:00:11.9]} 70. Nf6+
{[%clk 0:00:02.4]} 70... Kf3 {[%clk 0:00:12.6]} 71. Nd5 {[%clk 0:00:02.3]} 71...
Re2 {[%clk 0:00:12.4]} 72. Rf8 {[%clk 0:00:02]} 72... h3 {[%clk 0:00:11.8]} 73.
Rf7 {[%clk 0:00:02.2]} 73... Rd2+ {[%clk 0:00:12]} 74. Kxd2 {[%clk 0:00:01.3]}
74... h2 {[%clk 0:00:11.9]} 75. Rh7 {[%clk 0:00:01.4]} 75... h1=Q {[%clk
0:00:11.2]} 76. Rxh1 {[%clk 0:00:01.5]} 76... Nxh1 {[%clk 0:00:12.1]} 77. Nf6
{[%clk 0:00:01.6]} 77... g4 {[%clk 0:00:12.7]} 78. Ke1 {[%clk 0:00:01.7]} 78...
g3 {[%clk 0:00:13.3]} 79. Kf1 {[%clk 0:00:01.9]} 79... Nf2 {[%clk 0:00:13.7]}
80. Kg1 {[%clk 0:00:01.9]} 80... Nh3+ {[%clk 0:00:13.7]} 0-1

[Event "*** SCC Grand Prix: Titled Tuesday Blitz"]
[Site "Chess.com"]
[Date "2020.08.25"]
[Round "1"]
[White "serena-maria"]
[Black "David_Klein"]
[Result "0-1"]
[WhiteElo "2274"]
[BlackElo "2608"]
[TimeControl "180+1"]
[EndTime "10:09:13 PDT"]
[Termination "David_Klein won on time"]

1. Nf3 {[%clk 0:03:00.3]} 1... Nf6 {[%clk 0:02:59.8]} 2. g3 {[%clk 0:03:00.3]}
2... d5 {[%clk 0:02:58.2]} 3. Bg2 {[%clk 0:03:00.5]} 3... e6 {[%clk 0:02:58.4]}
4. O-O {[%clk 0:03:00.9]} 4... Be7 {[%clk 0:02:59]} 5. c4 {[%clk 0:03:01.4]}
5... O-O {[%clk 0:02:59.2]} 6. d4 {[%clk 0:03:01.8]} 6... dxc4 {[%clk
0:02:59.3]} 7. Qa4 {[%clk 0:03:02]} 7... a6 {[%clk 0:02:57.4]} 8. Qxc4 {[%clk
0:03:02.5]} 8... b5 {[%clk 0:02:58.1]} 9. Qc2 {[%clk 0:03:03.1]} 9... Bb7 {[%clk
0:02:58.6]} 10. Bd2 {[%clk 0:03:03.6]} 10... Be4 {[%clk 0:02:53.2]} 11. Qc1
{[%clk 0:03:02.9]} 11... Nbd7 {[%clk 0:02:37.8]} 12. Ba5 {[%clk 0:02:55.8]}
12... Bd6 {[%clk 0:02:37.5]} 13. Nc3 {[%clk 0:02:52.9]} 13... Bb7 {[%clk
0:02:35.1]} 14. Rd1 {[%clk 0:02:38.6]} 14... Qe7 {[%clk 0:02:33.4]} 15. a3
{[%clk 0:02:28.1]} 15... c5 {[%clk 0:02:31.9]} 16. dxc5 {[%clk 0:02:24.4]} 16...
Nxc5 {[%clk 0:02:32.8]} 17. Bb4 {[%clk 0:02:15.2]} 17... Rfd8 {[%clk 0:02:26.9]}
18. Qg5 {[%clk 0:01:33.2]} 18... h6 {[%clk 0:02:22]} 19. Qe3 {[%clk 0:01:31.9]}
19... Nd5 {[%clk 0:02:01.2]} 20. Nxd5 {[%clk 0:01:25.2]} 20... Bxd5 {[%clk
0:02:02.1]} 21. Rac1 {[%clk 0:01:08.4]} 21... Nd7 {[%clk 0:01:43.6]} 22. Rxd5
{[%clk 0:01:02.6]} 22... Bxb4 {[%clk 0:01:29.1]} 23. axb4 {[%clk 0:00:58]} 23...
Qxb4 {[%clk 0:01:20.8]} 24. Rdd1 {[%clk 0:00:54.6]} 24... Nf6 {[%clk 0:01:11.9]}
25. Rxd8+ {[%clk 0:00:52.1]} 25... Rxd8 {[%clk 0:01:11]} 26. Qc3 {[%clk
0:00:48.8]} 26... Qf8 {[%clk 0:01:05.8]} 27. Ne5 {[%clk 0:00:46.4]} 27... b4
{[%clk 0:00:57.5]} 28. Qc4 {[%clk 0:00:38.9]} 28... a5 {[%clk 0:00:50.8]} 29.
Nc6 {[%clk 0:00:34.5]} 29... Rd6 {[%clk 0:00:49.1]} 30. Nxa5 {[%clk 0:00:33.2]}
30... g6 {[%clk 0:00:43.3]} 31. Bf1 {[%clk 0:00:28.3]} 31... Rd5 {[%clk
0:00:39.7]} 32. Nb3 {[%clk 0:00:26.3]} 32... Kg7 {[%clk 0:00:38.7]} 33. Bg2
{[%clk 0:00:25.6]} 33... Rd8 {[%clk 0:00:38.6]} 34. h3 {[%clk 0:00:24.3]} 34...
Qd6 {[%clk 0:00:37.9]} 35. Qc5 {[%clk 0:00:23.2]} 35... Qb8 {[%clk 0:00:37.3]}
36. Rc4 {[%clk 0:00:15]} 36... Rd1+ {[%clk 0:00:34.1]} 37. Kh2 {[%clk
0:00:15.2]} 37... Qd8 {[%clk 0:00:30.7]} 38. Qxb4 {[%clk 0:00:12.5]} 38... Rb1
{[%clk 0:00:29.4]} 39. Qc3 {[%clk 0:00:12.1]} 39... Qd1 {[%clk 0:00:28.3]} 40.
g4 {[%clk 0:00:09.7]} 40... Qd6+ {[%clk 0:00:23.2]} 41. f4 {[%clk 0:00:08.6]}
41... g5 {[%clk 0:00:22.6]} 42. e3 {[%clk 0:00:08.2]} 42... Rd1 {[%clk
0:00:20.8]} 43. Nd4 {[%clk 0:00:08]} 43... gxf4 {[%clk 0:00:18.2]} 44. Nf3
{[%clk 0:00:05.3]} 44... fxe3+ {[%clk 0:00:16.8]} 45. Qe5 {[%clk 0:00:05.4]}
45... Qxe5+ {[%clk 0:00:14.3]} 46. Nxe5 {[%clk 0:00:06.3]} 46... e2 {[%clk
0:00:14.8]} 47. Nf3 {[%clk 0:00:06.6]} 47... e1=Q {[%clk 0:00:14.3]} 48. Nxe1
{[%clk 0:00:06.9]} 48... Rxe1 {[%clk 0:00:15.2]} 49. Rb4 {[%clk 0:00:06]} 49...
Rb1 {[%clk 0:00:14.9]} 50. Rb7 {[%clk 0:00:06.1]} 50... h5 {[%clk 0:00:14.8]}
51. gxh5 {[%clk 0:00:06]} 51... Nxh5 {[%clk 0:00:15]} 52. b4 {[%clk 0:00:06.2]}
52... Rb2 {[%clk 0:00:13.9]} 53. Kg1 {[%clk 0:00:06]} 53... Nf4 {[%clk
0:00:14.5]} 54. Bf3 {[%clk 0:00:04.9]} 54... Nxh3+ {[%clk 0:00:13.9]} 55. Kh1
{[%clk 0:00:05]} 55... Ng5 {[%clk 0:00:14.8]} 56. Bg2 {[%clk 0:00:04.6]} 56...
Kf6 {[%clk 0:00:14.7]} 57. b5 {[%clk 0:00:04.9]} 57... e5 {[%clk 0:00:14.6]} 58.
b6 {[%clk 0:00:05]} 58... Ne6 {[%clk 0:00:15.5]} 59. Rb8 {[%clk 0:00:04.9]}
59... Nc5 {[%clk 0:00:15.3]} 60. b7 {[%clk 0:00:05.4]} 60... e4 {[%clk
0:00:14.9]} 61. Rc8 {[%clk 0:00:05.3]} 61... Nxb7 {[%clk 0:00:14.9]} 62. Bxe4
{[%clk 0:00:05.3]} 62... Nd6 {[%clk 0:00:15.3]} 63. Rc6 {[%clk 0:00:04.9]} 63...
Ke5 {[%clk 0:00:15.5]} 64. Bg2 {[%clk 0:00:05.1]} 64... f5 {[%clk 0:00:14.9]}
65. Rc5+ {[%clk 0:00:04.8]} 65... Ke6 {[%clk 0:00:14.7]} 66. Bd5+ {[%clk
0:00:04.3]} 66... Kf6 {[%clk 0:00:14]} 67. Bg2 {[%clk 0:00:04.9]} 67... f4
{[%clk 0:00:12.4]} 68. Kg1 {[%clk 0:00:04.7]} 68... Nf5 {[%clk 0:00:11.5]} 69.
Rc6+ {[%clk 0:00:04.6]} 69... Kg5 {[%clk 0:00:11.2]} 70. Be4 {[%clk 0:00:05.1]}
70... Nd4 {[%clk 0:00:10.8]} 71. Rc5+ {[%clk 0:00:05.2]} 71... Kg4 {[%clk
0:00:11.2]} 72. Rc8 {[%clk 0:00:04.5]} 72... Ne2+ {[%clk 0:00:11.3]} 73. Kf2
{[%clk 0:00:03.6]} 73... Ng3+ {[%clk 0:00:12.2]} 74. Kg1 {[%clk 0:00:02.7]}
74... Nxe4 {[%clk 0:00:12.4]} 75. Rg8+ {[%clk 0:00:03.6]} 75... Kf3 {[%clk
0:00:12.5]} 76. Rf8 {[%clk 0:00:04.5]} 76... Nd2 {[%clk 0:00:10.2]} 77. Kh1
{[%clk 0:00:04.2]} 77... Nc4 {[%clk 0:00:10.5]} 78. Kg1 {[%clk 0:00:04.5]} 78...
Ne3 {[%clk 0:00:11]} 79. Kh1 {[%clk 0:00:04.6]} 79... Ng4 {[%clk 0:00:11.5]} 0-1

[Event "*** SCC Grand Prix: Titled Tuesday Blitz"]
[Site "Chess.com"]
[Date "2020.08.25"]
[Round "1"]
[White "JoliyRoger"]
[Black "Artur0208"]
[Result "1-0"]
[WhiteElo "2379"]
[BlackElo "2686"]
[TimeControl "180+1"]
[EndTime "10:09:18 PDT"]
[Termination "JoliyRoger won by resignation"]

1. Nf3 {[%clk 0:03:00.7]} 1... d5 {[%clk 0:03:00]} 2. c4 {[%clk 0:03:00.1]} 2...
d4 {[%clk 0:02:59.8]} 3. d3 {[%clk 0:03:00.2]} 3... c5 {[%clk 0:02:59.8]} 4. e3
{[%clk 0:03:00.7]} 4... Nc6 {[%clk 0:03:00.3]} 5. exd4 {[%clk 0:03:01.2]} 5...
cxd4 {[%clk 0:03:01.2]} 6. g3 {[%clk 0:03:01.6]} 6... Nf6 {[%clk 0:03:01.4]} 7.
Bg2 {[%clk 0:03:02.5]} 7... e6 {[%clk 0:03:01.1]} 8. O-O {[%clk 0:03:03.4]} 8...
Be7 {[%clk 0:03:01.5]} 9. a3 {[%clk 0:03:03.5]} 9... a5 {[%clk 0:02:59.9]} 10.
Bf4 {[%clk 0:03:01.3]} 10... O-O {[%clk 0:02:59.6]} 11. Ne5 {[%clk 0:02:54.1]}
11... Bd7 {[%clk 0:03:00]} 12. Nxd7 {[%clk 0:02:53.4]} 12... Qxd7 {[%clk
0:02:59.9]} 13. Re1 {[%clk 0:02:51]} 13... Rfe8 {[%clk 0:02:58.8]} 14. Nd2
{[%clk 0:02:42.3]} 14... h6 {[%clk 0:02:59.1]} 15. Nf3 {[%clk 0:02:41.4]} 15...
Bd6 {[%clk 0:02:55.7]} 16. Bd2 {[%clk 0:02:35.6]} 16... e5 {[%clk 0:02:52.9]}
17. Rb1 {[%clk 0:02:31.5]} 17... a4 {[%clk 0:02:50.6]} 18. Qc2 {[%clk
0:02:28.7]} 18... Re7 {[%clk 0:02:47.7]} 19. h3 {[%clk 0:02:20.3]} 19... Bc5
{[%clk 0:02:43.3]} 20. Nh2 {[%clk 0:02:13]} 20... Na5 {[%clk 0:02:32.3]} 21.
Bxa5 {[%clk 0:02:05.2]} 21... Rxa5 {[%clk 0:02:33.2]} 22. Nf3 {[%clk 0:02:05.3]}
22... Qd6 {[%clk 0:02:29.8]} 23. Nd2 {[%clk 0:02:05.4]} 23... b6 {[%clk
0:02:26.7]} 24. Re2 {[%clk 0:01:43.2]} 24... Qc7 {[%clk 0:02:20.6]} 25. Rbe1
{[%clk 0:01:42.9]} 25... Ra7 {[%clk 0:02:20.3]} 26. Nf3 {[%clk 0:01:39.5]} 26...
Bd6 {[%clk 0:02:17.4]} 27. Nd2 {[%clk 0:01:37.6]} 27... Nd7 {[%clk 0:02:13.1]}
28. Ne4 {[%clk 0:01:36.6]} 28... Bc5 {[%clk 0:02:11.1]} 29. Qd1 {[%clk
0:01:26.4]} 29... Kh8 {[%clk 0:02:08.6]} 30. Kh2 {[%clk 0:01:23.6]} 30... Nf8
{[%clk 0:02:00.4]} 31. Nd2 {[%clk 0:01:23]} 31... Qd6 {[%clk 0:01:53]} 32. Ne4
{[%clk 0:01:22.4]} 32... Qc7 {[%clk 0:01:53]} 33. Nd2 {[%clk 0:01:22.7]} 33...
f5 {[%clk 0:01:52.6]} 34. Nf3 {[%clk 0:01:03.9]} 34... Bd6 {[%clk 0:01:44.8]}
35. Kg1 {[%clk 0:00:58.2]} 35... Ng6 {[%clk 0:01:33.7]} 36. h4 {[%clk
0:00:56.4]} 36... Ra5 {[%clk 0:01:16.7]} 37. h5 {[%clk 0:00:56.4]} 37... Nf8
{[%clk 0:01:16.7]} 38. Nh4 {[%clk 0:00:56.9]} 38... Rf7 {[%clk 0:01:14.5]} 39.
Bh3 {[%clk 0:00:53.9]} 39... e4 {[%clk 0:01:03.9]} 40. dxe4 {[%clk 0:00:28.5]}
40... fxe4 {[%clk 0:01:04.8]} 41. Rxe4 {[%clk 0:00:21.2]} 41... Bxg3 {[%clk
0:00:43.5]} 42. fxg3 {[%clk 0:00:20.6]} 42... Qxg3+ {[%clk 0:00:44.4]} 43. Bg2
{[%clk 0:00:21.3]} 43... Rg5 {[%clk 0:00:44.4]} 44. Qe2 {[%clk 0:00:12.6]} 44...
d3 {[%clk 0:00:43.5]} 45. Qe3 {[%clk 0:00:12.2]} 45... Qxe3+ {[%clk 0:00:41.1]}
46. R4xe3 {[%clk 0:00:12]} 46... Rxh5 {[%clk 0:00:41.3]} 47. Nf3 {[%clk
0:00:11]} 47... d2 {[%clk 0:00:40.3]} 48. Nxd2 {[%clk 0:00:10.7]} 48... Rg5
{[%clk 0:00:40.9]} 49. Nf3 {[%clk 0:00:10.5]} 49... Rc5 {[%clk 0:00:39.9]} 50.
Ne5 {[%clk 0:00:10.6]} 50... Rf4 {[%clk 0:00:37.3]} 51. Rf1 {[%clk 0:00:08.4]}
51... Rxf1+ {[%clk 0:00:36.5]} 52. Bxf1 {[%clk 0:00:08.6]} 52... g5 {[%clk
0:00:37.4]} 53. Bd3 {[%clk 0:00:06.5]} 53... Kg7 {[%clk 0:00:37]} 54. Nf3 {[%clk
0:00:05.6]} 54... Kf6 {[%clk 0:00:34.8]} 55. Nd4 {[%clk 0:00:06]} 55... Re5
{[%clk 0:00:34.6]} 56. Rf3+ {[%clk 0:00:05]} 56... Ke7 {[%clk 0:00:34.9]} 57.
Nb5 {[%clk 0:00:05.2]} 57... Ne6 {[%clk 0:00:34.4]} 58. Kf2 {[%clk 0:00:05.1]}
58... Nf4 {[%clk 0:00:34.6]} 59. Bf1 {[%clk 0:00:05.7]} 59... Kf6 {[%clk
0:00:33.2]} 60. Nd4 {[%clk 0:00:06.1]} 60... Kg6 {[%clk 0:00:31.6]} 61. Ne2
{[%clk 0:00:06.5]} 61... Ne6 {[%clk 0:00:31.7]} 62. Ng3 {[%clk 0:00:05.4]} 62...
Nc5 {[%clk 0:00:31.8]} 63. Bd3+ {[%clk 0:00:05.3]} 63... Nxd3+ {[%clk
0:00:30.1]} 64. Rxd3 {[%clk 0:00:05.7]} 64... Re6 {[%clk 0:00:31]} 65. Rd5
{[%clk 0:00:05.7]} 65... h5 {[%clk 0:00:30.2]} 66. Kf3 {[%clk 0:00:06]} 66...
g4+ {[%clk 0:00:28.8]} 67. Kf4 {[%clk 0:00:06]} 67... h4 {[%clk 0:00:28.8]} 68.
Nf5 {[%clk 0:00:05.9]} 68... h3 {[%clk 0:00:26.5]} 69. Kxg4 {[%clk 0:00:05.9]}
69... h2 {[%clk 0:00:26.9]} 70. Ng3 {[%clk 0:00:06.5]} 70... Re3 {[%clk
0:00:25.8]} 71. Rg5+ {[%clk 0:00:07]} 71... Kf6 {[%clk 0:00:25]} 72. Rh5 {[%clk
0:00:07.2]} 72... Rd3 {[%clk 0:00:21.8]} 73. Rxh2 {[%clk 0:00:07.6]} 73... Rd4+
{[%clk 0:00:22.3]} 74. Kf3 {[%clk 0:00:08]} 74... Rxc4 {[%clk 0:00:23.2]} 75.
Rh6+ {[%clk 0:00:08.6]} 75... Ke5 {[%clk 0:00:23.6]} 76. Rxb6 {[%clk 0:00:09.5]}
76... Kd5 {[%clk 0:00:23.8]} 77. Ne2 {[%clk 0:00:08.7]} 77... Rc2 {[%clk
0:00:23]} 78. Rb4 {[%clk 0:00:09]} 78... Kc5 {[%clk 0:00:22.6]} 79. Ke3 {[%clk
0:00:09.6]} 79... Kc6 {[%clk 0:00:21.1]} 80. Kd3 {[%clk 0:00:10]} 80... Rc5
{[%clk 0:00:21.4]} 81. Nd4+ {[%clk 0:00:10.3]} 81... Kc7 {[%clk 0:00:21.1]} 82.
Rc4 {[%clk 0:00:10.3]} 82... Kd6 {[%clk 0:00:21.1]} 83. Rxc5 {[%clk 0:00:10.5]}
83... Kxc5 {[%clk 0:00:22]} 84. Kc3 {[%clk 0:00:11.3]} 84... Kb6 {[%clk
0:00:22.5]} 85. Kb4 {[%clk 0:00:11.1]} 85... Ka6 {[%clk 0:00:23.4]} 86. Kxa4
{[%clk 0:00:11.7]} 1-0

[Event "*** SCC Grand Prix: Titled Tuesday Blitz"]
[Site "Chess.com"]
[Date "2020.08.25"]
[Round "1"]
[White "IMAghasiyevKamal"]
[Black "nrvisakh"]
[Result "1/2-1/2"]
[WhiteElo "2416"]
[BlackElo "2800"]
[TimeControl "180+1"]
[EndTime "10:09:20 PDT"]
[Termination "Game drawn - insufficient material"]

1. d4 {[%clk 0:02:57.1]} 1... Nf6 {[%clk 0:02:56.5]} 2. c4 {[%clk 0:02:55.2]}
2... g6 {[%clk 0:01:59.1]} 3. Nc3 {[%clk 0:02:54]} 3... d5 {[%clk 0:01:57.5]} 4.
cxd5 {[%clk 0:02:52.2]} 4... Nxd5 {[%clk 0:01:58.4]} 5. e4 {[%clk 0:02:52.2]}
5... Nxc3 {[%clk 0:01:58.1]} 6. bxc3 {[%clk 0:02:51.8]} 6... Bg7 {[%clk
0:01:59]} 7. Bc4 {[%clk 0:02:50.3]} 7... c5 {[%clk 0:01:57.3]} 8. Ne2 {[%clk
0:02:50.4]} 8... O-O {[%clk 0:01:54]} 9. O-O {[%clk 0:02:49.3]} 9... Nc6 {[%clk
0:01:49.4]} 10. Be3 {[%clk 0:02:48.7]} 10... cxd4 {[%clk 0:01:45.5]} 11. cxd4
{[%clk 0:02:48.3]} 11... b6 {[%clk 0:01:45.5]} 12. Rc1 {[%clk 0:02:45.8]} 12...
Bb7 {[%clk 0:01:45.5]} 13. Qd2 {[%clk 0:02:42.6]} 13... Rc8 {[%clk 0:01:40.6]}
14. Rfd1 {[%clk 0:02:33]} 14... Qd6 {[%clk 0:01:19]} 15. e5 {[%clk 0:02:30.1]}
15... Qb4 {[%clk 0:01:13.8]} 16. Bd5 {[%clk 0:02:09.3]} 16... Qxd2 {[%clk
0:01:10.3]} 17. Rxd2 {[%clk 0:02:02.2]} 17... Rfd8 {[%clk 0:01:08.4]} 18. Bf3
{[%clk 0:01:53.9]} 18... Na5 {[%clk 0:00:56.7]} 19. Rdc2 {[%clk 0:01:44]} 19...
Rxc2 {[%clk 0:00:55]} 20. Rxc2 {[%clk 0:01:43.4]} 20... Bxe5 {[%clk 0:00:47]}
21. Bxb7 {[%clk 0:01:35.9]} 21... Nxb7 {[%clk 0:00:46.6]} 22. g3 {[%clk
0:01:30]} 22... Bd6 {[%clk 0:00:45]} 23. h4 {[%clk 0:01:26.3]} 23... f6 {[%clk
0:00:44.8]} 24. Kg2 {[%clk 0:01:24]} 24... Kf7 {[%clk 0:00:44.7]} 25. Kf3 {[%clk
0:01:22.6]} 25... Rd7 {[%clk 0:00:44.1]} 26. Rc8 {[%clk 0:01:19.9]} 26... h5
{[%clk 0:00:39.2]} 27. Bf4 {[%clk 0:01:02.9]} 27... Bxf4 {[%clk 0:00:30.6]} 28.
Nxf4 {[%clk 0:01:01.9]} 28... Nd6 {[%clk 0:00:30.3]} 29. Ra8 {[%clk 0:00:54]}
29... Nf5 {[%clk 0:00:27.1]} 30. d5 {[%clk 0:00:53.5]} 30... Nd4+ {[%clk
0:00:26.4]} 31. Ke4 {[%clk 0:00:53.2]} 31... Nb5 {[%clk 0:00:26.5]} 32. Ne6
{[%clk 0:00:51.8]} 32... Nc3+ {[%clk 0:00:26.4]} 33. Kf3 {[%clk 0:00:43.2]}
33... Rxd5 {[%clk 0:00:21]} 34. Nd8+ {[%clk 0:00:34.7]} 34... Kg7 {[%clk
0:00:20.4]} 35. Nc6 {[%clk 0:00:32.2]} 35... Rd7 {[%clk 0:00:18.4]} 36. Nxa7
{[%clk 0:00:30.1]} 36... Nxa2 {[%clk 0:00:16.6]} 37. Nc6 {[%clk 0:00:24.7]}
37... Nc3 {[%clk 0:00:14.9]} 38. Nd8 {[%clk 0:00:24.6]} 38... e5 {[%clk
0:00:08]} 39. Nc6 {[%clk 0:00:20.1]} 39... Nd5 {[%clk 0:00:07.4]} 40. Rb8 {[%clk
0:00:19.1]} 40... Rc7 {[%clk 0:00:07.3]} 41. Nd8 {[%clk 0:00:18.2]} 41... Rd7
{[%clk 0:00:07.3]} 42. Nc6 {[%clk 0:00:17.5]} 42... Rc7 {[%clk 0:00:06.1]} 43.
Nd8 {[%clk 0:00:17.5]} 43... Ra7 {[%clk 0:00:06.6]} 44. Ke4 {[%clk 0:00:16.1]}
44... Ne7 {[%clk 0:00:06.7]} 45. Ne6+ {[%clk 0:00:14.9]} 45... Kf7 {[%clk
0:00:06.2]} 46. Nd8+ {[%clk 0:00:15.3]} 46... Kg7 {[%clk 0:00:06.5]} 47. Ne6+
{[%clk 0:00:15.8]} 47... Kh7 {[%clk 0:00:06.9]} 48. Nf8+ {[%clk 0:00:15.4]}
48... Kh6 {[%clk 0:00:07.2]} 49. Ne6 {[%clk 0:00:15.5]} 49... Ra4+ {[%clk
0:00:07.3]} 50. Kf3 {[%clk 0:00:15.8]} 50... g5 {[%clk 0:00:07.2]} 51. hxg5+
{[%clk 0:00:15]} 51... fxg5 {[%clk 0:00:07.3]} 52. Re8 {[%clk 0:00:14.8]} 52...
g4+ {[%clk 0:00:06.9]} 53. Kg2 {[%clk 0:00:14.8]} 53... Ng6 {[%clk 0:00:07.1]}
54. Nc7 {[%clk 0:00:14.1]} 54... Rc4 {[%clk 0:00:06.1]} 55. Nd5 {[%clk
0:00:13.9]} 55... b5 {[%clk 0:00:05.5]} 56. Ne3 {[%clk 0:00:14]} 56... Rc7
{[%clk 0:00:04.4]} 57. Rb8 {[%clk 0:00:13.7]} 57... h4 {[%clk 0:00:03.6]} 58.
Nxg4+ {[%clk 0:00:12.8]} 58... Kg5 {[%clk 0:00:03.5]} 59. Ne3 {[%clk 0:00:13.1]}
59... hxg3 {[%clk 0:00:03.7]} 60. Kxg3 {[%clk 0:00:13.6]} 60... Nf4 {[%clk
0:00:03.7]} 61. Rxb5 {[%clk 0:00:13.9]} 61... Re7 {[%clk 0:00:03.8]} 62. Rb8
{[%clk 0:00:13]} 62... Ne2+ {[%clk 0:00:03.9]} 63. Kf3 {[%clk 0:00:12.5]} 63...
Nf4 {[%clk 0:00:04.3]} 64. Rg8+ {[%clk 0:00:11.9]} 64... Kh5 {[%clk 0:00:03.8]}
65. Nf5 {[%clk 0:00:12.1]} 65... Rf7 {[%clk 0:00:01]} 66. Ke4 {[%clk 0:00:10.8]}
66... Ng6 {[%clk 0:00:01.1]} 67. Ng3+ {[%clk 0:00:09.1]} 67... Kg5 {[%clk
0:00:01.5]} 68. f3 {[%clk 0:00:07.9]} 68... Rf4+ {[%clk 0:00:01.4]} 69. Ke3
{[%clk 0:00:07.9]} 69... Rf8 {[%clk 0:00:02.3]} 70. Ne4+ {[%clk 0:00:06.4]}
70... Kh6 {[%clk 0:00:02.4]} 71. Rxf8 {[%clk 0:00:06.1]} 71... Nxf8 {[%clk
0:00:03.3]} 72. f4 {[%clk 0:00:06.9]} 72... exf4+ {[%clk 0:00:03.2]} 73. Kxf4
{[%clk 0:00:07.8]} 1/2-1/2